Cogmind - Beta 12 X1 @@@ ROGUE MODE // 2022.08.24 @ 03:17:50 Player: Exp. Geonium Core Result: Destroyed by H-77 Assassin with Coil Gun Performance ------------- Evolutions (6) 3000 Regions Visited (16) 3200 Robots Destroyed (130) 650 Value Destroyed (7600) 7600 Prototype IDs (28) 560 Alien Tech Used (0) 0 Bonus (7774) 7774 TOTAL SCORE: 22784 Bonus ------- High Alert Combat Kills 1879 Follower Combat Kills 2476 Entered Garrisons 1200 Used RIF Installer 2500 Aligned with FarCom 300 Friendly Fire -581 Cogmind --------- Core Integrity 0/1150 Matter 266/300 Energy 170/170 System Corruption 1% Temperature Cool (0) Movement Treading (180) Location -4/Garrison Parts ------- > --- POWER (3) -------- Light Antimatter Reactor > --- PROPULSION (6) --- Heavy Siege Treads Flexi-carbon Leg Flexi-carbon Leg Flexi-carbon Leg > --- UTILITY (8) ------ Advanced Heat Sink Advanced Heat Sink Advanced Heat Sink Relay Coupler [Grunt] (26) Relay Coupler [Grunt] (32) Relay Coupler [Specialist] (25) Relay Coupler [Hunter] (19) Relay Coupler [Hunter] (15) > --- WEAPON (2) ------- Plasma Rifle Field Lobotomy Kit > --- INVENTORY (5) ---- Relay Coupler [Proto] (9) Relay Coupler [Proto] (9) Improved Datajack Improved Remote Datajack Peak State ------------ > --- POWER ------------ Reinforced Deuterium Engine Light Fission Core Antimatter Reactor > --- PROPULSION ------- Improved Heavy Treads Improved Heavy Treads Improved Heavy Treads > --- UTILITY ---------- Improved Coolant Injector Huge Storage Unit Advanced Shield Generator Relay Coupler [NC] Relay Coupler [Grunt] Relay Coupler [Specialist] Relay Coupler [Hunter] Relay Coupler [Proto] > --- WEAPON ----------- Railgun Power Sword > --- INVENTORY -------- Light Fission Core Huge Storage Unit Matter Compressor Relay Coupler [NC] Relay Coupler [Swarmer] Relay Coupler [Swarmer] Relay Coupler [Grunt] Relay Coupler [Duelist] Relay Coupler [Demolisher] Relay Coupler [Hunter] Relay Coupler [Behemoth] Relay Coupler [Behemoth] Relay Coupler [Proto] Relay Coupler [Proto] Smartbomb Launcher Smartbomb Launcher Improved Datajack Improved Remote Datajack Improved Remote Datajack Improved Remote Datajack Field Lobotomy Kit Improved Plasma Cutter Axe [Rating: 118] Favorites ----------- Power Light Nuclear Core Engine Reinforced Deuterium Engine Power Core Light Nuclear Core Reactor Antimatter Reactor Propulsion Improved Heavy Treads Treads Improved Heavy Treads Leg Aluminum Leg Wheel Armored Huge Wheel Utility Huge Storage Unit Device Improved Coolant Injector Storage Huge Storage Unit Processor Targeting Computer Hackware Relay Coupler [Grunt] Protection Hardened Heavy Armor Plating Weapon Power Sword Energy Gun Particle Gun Energy Cannon Plasma Cannon Ballistic Gun Heavy Assault Rifle Ballistic Cannon Heavy Linear Accelerator Launcher Missile Launcher Special Weapon Remote Datajack Impact Weapon Mace Slashing Weapon Power Sword Special Melee Weapon Improved Datajack Build | -11 -10 -10 -10 -9 -8 -8 -8 -8 -7 -7 -6 -6 -5 -5 -4 -4 ------- Run | Scr Mat Min Exi Min Mat Gar Mat Gar Fac Gar Fac Gar Fac Gar Fac Gar Slots Evolved 12 | . . . . . 4 . . . 2 . 2 . 2 . 2 . Power 2 | . . . . . . . . . . . 2 . . . . . Propulsion 4 | . . . . . 2 . . . . . . . 2 . . . Utility 6 | . . . . . 2 . . . 2 . . . . . 2 . Weapon . | . . . . . . . . . . . . . . . . . Parts Attached 221 | . 8 2 2 4 30 32 3 12 5 19 4 26 10 18 32 14 Power 18 | . 1 1 . . 1 2 . . . 2 2 3 2 2 1 1 Engine 6 | . 1 1 . . 1 1 . . . . 1 1 . . . . Core 10 | . . . . . . 1 . . . 2 1 2 2 2 . . Reactor 2 | . . . . . . . . . . . . . . . 1 1 Propulsion 35 | . 3 1 1 2 8 5 . 2 . 1 . 4 1 . 4 3 Treads 22 | . . . . 2 7 4 . 2 . 1 . 4 1 . 1 . Leg 8 | . 3 1 1 . . . . . . . . . . . . 3 Wheel 5 | . . . . . 1 1 . . . . . . . . 3 . Hover . | . . . . . . . . . . . . . . . . . Flight . | . . . . . . . . . . . . . . . . . Utility 62 | . 1 . 1 1 5 7 1 2 1 4 2 9 2 8 11 7 Device 13 | . . . . 1 1 1 . 1 . 1 . 2 . . 3 3 Storage 4 | . 1 . 1 . . . . 1 . . . . . . 1 . Processor 2 | . . . . . 1 . . . . . . 1 . . . . Hackware 34 | . . . . . . 3 1 . 1 2 2 4 2 8 7 4 Protection 9 | . . . . . 3 3 . . . 1 . 2 . . . . Artifact . | . . . . . . . . . . . . . . . . . Weapon 106 | . 3 . . 1 16 18 2 8 4 12 . 10 5 8 16 3 Energy Gun 6 | . . . . . 5 . . . . . . . . . . 1 Energy Cannon 2 | . . . . . 2 . . . . . . . . . . . Ballistic Gun 25 | . 3 . . 1 6 7 . . . . . 1 2 3 2 . Ballistic Cannon 16 | . . . . . . 2 . 3 2 6 . 3 . . . . Launcher 11 | . . . . . . 1 . 1 1 3 . 1 1 . 3 . Special Weapon 16 | . . . . . . . . 1 . 1 . 2 1 2 7 2 Impact Weapon 9 | . . . . . 3 5 . 1 . . . . . . . . Slashing Weapon 16 | . . . . . . . 1 2 . 2 . 3 1 3 4 . Piercing Weapon . | . . . . . . . . . . . . . . . . . Special Melee Weapon 5 | . . . . . . 3 1 . 1 . . . . . . . Unidentified Prototypes 2 | . . . . . 2 . . . . . . . . . . . Parts Lost 38 | . . 1 . 1 1 1 . . . 3 . 9 1 . 21 . Power 8 | . . 1 . . . . . . . 1 . 3 . . 3 . Propulsion 8 | . . . . . . . . . . . . 2 . . 6 . Utility 12 | . . . . . . 1 . . . 2 . 2 . . 7 . Weapon 10 | . . . . 1 1 . . . . . . 2 1 . 5 . Highest Loss Streak 13 | . . 1 . 1 1 1 . . . 1 . 6 1 . 13 . To Critical Strikes . | . . . . . . . . . . . . . . . . . Average Slot Usage (%) 78 | . 80 81 85 97 89 82 81 72 62 63 85 81 81 81 65 33 Engine 5 | . 12 10 14 14 9 6 . . . . 6 5 5 5 3 . Core 5 | . . . . . . 2 9 9 7 6 13 11 11 11 4 . Treads 16 | . . . . 23 22 21 27 21 15 15 13 14 17 17 9 5 Leg 2 | . 26 28 28 4 . . . . . . . . . . . 6 Wheel 1 | . . . . . 6 5 . . . . . . . . . . Device 6 | . . . . 11 9 5 . 7 7 8 9 9 5 . 6 5 Storage 7 | . 14 14 14 14 9 9 9 9 7 7 6 6 5 5 3 . Processor 1 | . . . . . 1 2 . . . . . 4 3 . . . Hackware 9 | . . . . . . 2 9 1 3 12 22 12 18 28 26 11 Protection 5 | . . . . . 14 8 9 9 7 2 . 3 . . . . Ballistic Gun 6 | . 26 28 28 28 10 4 . . . . . 4 4 5 1 . Special Weapon 1 | . . . . . . . . 5 3 3 6 . 1 2 . . Slashing Weapon 2 | . . . . . . . 7 5 4 2 6 5 3 2 3 . Naked Turns . | . . . . . . . . . . . . . . . . . Heaviest Build 137 | 12 17 17 57 49 70 90 72 110 133 133 112 137 123 123 133 27 Greatest Support 225 | 20 20 20 20 40 83 117 117 150 150 150 150 150 225 225 225 70 Greatest Overweight (x) 8 | . 3 . 2 2 2 2 . 1 . 1 . 1 . . 8 . Average Overweight (x) . | . . . . 1 1 1 . . . . . . . . . . Largest Inventory Capacity 25 | 8 10 10 20 20 20 20 20 25 25 25 25 25 25 25 25 5 Average Capacity 21 | 8 8 10 11 20 20 20 20 22 25 25 25 25 25 25 20 5 Most Carried 25 | 6 8 10 11 17 20 20 20 25 25 25 25 25 25 25 25 5 Average Carried 20 | 6 6 9 9 13 19 19 19 20 24 24 24 23 24 24 19 4 Final Capacity 25 | 8 10 10 20 20 20 20 20 25 25 25 25 25 25 25 5 5 Final Carried 25 | 6 8 10 11 17 20 20 19 25 24 25 24 24 25 25 5 4 Class Distribution -------------------- 48% | Bothacker-Mutant 23% | Botlord-Mutant 15% | Mutant 11% | Scavenger-Mutant Dominant Class ---------------- Mutant | -10/Materials Mutant | -10/Mines Scavenger-Mutant | -10/Exiles Mutant | -9/Mines Scavenger-Mutant | -8/Materials Bothacker-Mutant | -8/Garrison Bothacker-Mutant | -8/Materials Bothacker-Mutant | -8/Garrison Bothacker-Mutant | -7/Factory Bothacker-Mutant | -7/Garrison Bothacker-Mutant | -6/Factory Bothacker-Mutant | -6/Garrison Botlord-Mutant | -5/Factory Botlord-Mutant | -5/Garrison Botlord-Mutant | -4/Factory Botlord-Mutant | -4/Garrison Resources | -11 -10 -10 -10 -9 -8 -8 -8 -8 -7 -7 -6 -6 -5 -5 -4 -4 ----------- Run | Scr Mat Min Exi Min Mat Gar Mat Gar Fac Gar Fac Gar Fac Gar Fac Gar Matter Collected 5516 | 200 90 101 . 273 681 441 . 689 46 785 . 531 460 369 705 145 Remotely . | . . . . . . . . . . . . . . . . . Salvage Created 5332 | . 90 101 . 144 1001 668 . 1103 166 660 . 295 . 124 980 . Parts 244 | . 5 5 . 8 46 40 . 44 11 34 . 16 . 3 32 . Haulers Intercepted 3 | . 1 . . . 2 . . . . . . . . . . . Recyclers Shooed 2 | . 2 . . . . . . . . . . . . . . . Parts Field Recycled . | . . . . . . . . . . . . . . . . . Retrieved Matter . | . . . . . . . . . . . . . . . . . Parts Self-Destructed . | . . . . . . . . . . . . . . . . . Prevented . | . . . . . . . . . . . . . . . . . Kills | -11 -10 -10 -10 -9 -8 -8 -8 -8 -7 -7 -6 -6 -5 -5 -4 -4 ------- Run | Scr Mat Min Exi Min Mat Gar Mat Gar Fac Gar Fac Gar Fac Gar Fac Gar Combat Hostiles Destroyed 113 | . 1 2 . 2 15 21 . 10 6 24 . 6 . 2 24 . Melee 5 | . . . . . . . . . 1 . . 3 . . 1 . Guns 27 | . 1 2 . 2 14 6 . . . . . . . 2 . . Cannons 33 | . . . . . 1 9 . 7 2 14 . . . . . . AOE 48 | . . . . . . 6 . 3 3 10 . 3 . . 23 . Classes Destroyed 16 | . 2 . . 1 4 2 . 1 1 1 . 1 . . 3 . Worker 6 | . . . . . 2 . . . 1 . . . . . 3 . Builder 6 | . . . . . 1 . . . . . . . . . 5 . Tunneler 1 | . . . . . . . . . . . . . . . 1 . Hauler 3 | . 1 . . . 2 . . . . . . . . . . . Recycler 5 | . . . . 1 1 . . . 1 . . . . . 2 . Swarmer 24 | . . . . . . 8 . 3 4 7 . . . . 2 . Cutter 3 | . . . . . . . . 1 . . . 2 . . . . Grunt 49 | . 1 2 . 2 8 7 . 5 1 11 . . . 2 10 . Brawler 1 | . . . . . . . . . . 1 . . . . . . Duelist 1 | . . . . . . 1 . . . . . . . . . . Protector 1 | . . . . . . . . . . . . . . . 1 . Sentry 11 | . . . . . 4 5 . 2 . . . . . . . . Hunter 9 | . . . . . 3 . . . . . . 2 . . 4 . Programmer 9 | . . . . . . . . . 1 5 . 1 . . 2 . Behemoth 1 | . . . . . . . . . . . . 1 . . . . Assembled 6 | . . . . . . . . . . . . . . . 6 . Best Kill Streak 19 | . 1 2 . 2 8 4 . 4 5 9 . 3 . 1 19 . Combat Bots Only 9 | . 1 2 . 2 4 4 . 4 5 9 . 3 . 1 9 . Max Kills in Single Turn 5 | . 1 1 . 1 2 3 . 2 3 3 . 1 . 1 5 . Gunslinging . | . . . . . . . . . . . . . . . . . Exploded 5 | . . . . . . 3 . 2 3 3 . 1 . . 5 . Melee 1 | . . . . . . . . . 1 . . 1 . . 1 . Uniques/NPCs Destroyed . | . . . . . . . . . . . . . . . . . Combat | -11 -10 -10 -10 -9 -8 -8 -8 -8 -7 -7 -6 -6 -5 -5 -4 -4 -------- Run | Scr Mat Min Exi Min Mat Gar Mat Gar Fac Gar Fac Gar Fac Gar Fac Gar Damage Taken 12287 | . 20 266 . 145 1622 1427 69 279 152 1466 160 2458 546 575 2568 534 Core 2053 | . 10 47 . 30 222 27 13 30 . 91 48 286 14 69 1012 154 Absorbed by Shields 1182 | . . . . . . . . . . . 62 528 201 26 365 . Redirected to Shielding 49 | . . . . . 49 . . . . . . . . . . . Regen/Repaired (Parts) 415 | . . . . . . . . . . . . . 260 155 . . Core Remaining (%) 74 | 100 . . . 65 . . . 46 . 87 . 60 . 91 . . Volleys Fired 409 | . 13 10 . 11 80 63 . 53 8 49 9 23 15 27 45 3 Largest 2 | . 2 2 . 2 2 2 . 1 1 1 1 1 2 2 1 1 Hottest 118 | . 40 40 . 40 108 118 . 83 83 83 5 83 68 68 46 75 Shots Fired 585 | . 26 20 . 20 160 106 . 53 8 50 9 23 23 39 45 3 Gun 299 | . 26 20 . 20 139 54 . . . . . . 16 23 . 1 Cannon 155 | . . . . . 21 47 . 23 7 40 . 17 . . . . Launcher 39 | . . . . . . 5 . 2 1 7 . 3 . . 21 . Special 92 | . . . . . . . . 28 . 3 9 3 7 16 24 2 Kinetic 369 | . 26 20 . 20 110 67 . 23 7 40 . 17 16 23 . . Thermal 113 | . . . . . 50 34 . 28 . . . . . . . 1 Explosive 39 | . . . . . . 5 . 2 1 7 . 3 . . 21 . Electromagnetic . | . . . . . . . . . . . . . . . . . Robot Hit Streak 30 | . 5 8 . 8 28 15 . 30 3 9 6 4 4 8 14 3 Robot Miss Streak 4 | . 2 2 . 2 3 4 . 4 2 3 3 2 3 4 2 . Penetration Max 1 | . . . . . 1 1 . . . . . 1 1 1 . . Secondary Targets 2 | . . . . . 2 . . . . . . . . . . . Max Gunslinging Chain 1 | . . . . . 1 . . . . . . . . . . . Shots Hit Robots 471 | . 17 15 . 15 123 64 2 64 9 32 6 53 12 26 31 2 Core Hits 269 | . 6 7 . 7 45 31 . 31 10 34 . 15 3 8 72 . Critical Kills 4 | . . . . . . 2 . . . 2 . . . . . . Critical Parts Destroyed 8 | . . . . . 1 3 . . . 1 . 3 . . . . Critical Strikes 29 | . . . . . 2 8 1 2 1 7 . 8 . . . . Burn 1 | . . . . . 1 . . . . . . . . . . . Destroy 12 | . . . . . 1 5 . . . 3 . 3 . . . . Blast 10 | . . . . . . 3 . 2 . 4 . 1 . . . . Sever 6 | . . . . . . . 1 . 1 . . 4 . . . . Melee Attacks 193 | . . . . . 12 31 5 26 11 10 . 54 4 24 16 . Impact 35 | . . . . . 12 22 . 1 . . . . . . . . Slashing 147 | . . . . . . . 4 25 10 10 . 54 4 24 16 . Piercing . | . . . . . . . . . . . . . . . . . Sneak Attacks 12 | . . . . . . . . . 2 . . . . 2 8 . Combat Hostiles 3 | . . . . . . . . . . . . . . 1 2 . Follow-up Attacks . | . . . . . . . . . . . . . . . . . Damage Inflicted 20958 | . 157 122 . 136 2060 1987 35 3423 687 3015 . 2627 309 507 5891 2 Guns 3364 | . 155 122 . 134 1724 611 . . . . . . 309 309 . . Cannons 5090 | . . . . . 332 806 . 1267 281 1954 . 450 . . . . Explosions 7246 | . . . . . . 517 . 125 157 918 . 255 . . 5274 . Melee 4570 | . . . . . . 53 35 1529 249 . . 1922 . 185 597 . Ramming 232 | . 2 . . 2 4 . . 46 . 143 . . . 13 20 2 Kinetic 7287 | . 155 122 . 134 1407 899 . 1267 281 1954 . 450 309 309 . . Thermal 1790 | . . . . . 649 518 . 456 . . . . . . 167 . Explosive 7079 | . . . . . . 517 . 125 157 918 . 255 . . 5107 . Electromagnetic . | . . . . . . . . . . . . . . . . . Impact 53 | . . . . . . 53 . . . . . . . . . . Slashing 4517 | . . . . . . . 35 1529 249 . . 1922 . 185 597 . Piercing . | . . . . . . . . . . . . . . . . . Highest Corruption 4 | . . . . . . . . . . 1 . 1 4 4 1 1 Average Corruption 1 | . . . . . . . . . . 1 . 1 2 4 1 1 Corruption Purged . | . . . . . . . . . . . . . . . . . Corruption Blocked 2 | . . . . . . . . . . . . 2 . . . . Effects 48 | . . . . . . . . . . 4 . 8 4 24 4 4 Message Errors 17 | . . . . . . . . . . 1 . 3 1 9 3 . Matter Fused 12 | . . . . . . . . . . 1 . 2 2 4 . 3 Heat Flow Errors 3 | . . . . . . . . . . 1 . . . 2 . . Energy Discharges 3 | . . . . . . . . . . . . 1 . 1 . 1 Data Loss (minor) 6 | . . . . . . . . . . . . . . 5 1 . Misfires 2 | . . . . . . . . . . 1 . . . 1 . . Alerts 5 | . . . . . . . . . . . . 2 1 2 . . Overload Shots . | . . . . . . . . . . . . . . . . . Overflow Damage 1066 | . . . . . . 15 . 190 43 437 . 56 . 8 317 . Projectiles 533 | . . . . . . . . 97 43 393 . . . . . . Explosions 297 | . . . . . . 15 . . . 40 . 16 . . 226 . Melee 236 | . . . . . . . . 93 . 4 . 40 . 8 91 . Knockbacks 15 | . . . . . . 1 . 5 1 7 . 1 . . . . Impact 3 | . . . . . . . . . . 3 . . . . . . Kinetic 11 | . . . . . . 1 . 4 1 4 . 1 . . . . Secondary 1 | . . . . . . . . 1 . . . . . . . . Self-Inflicted Damage 316 | . . . . . . 14 . 29 . 34 . 105 . . 134 . Shots 8 | . . . . . . 1 . 1 . 1 . 3 . . 2 . Rammed 37 | . . . . 1 1 . . 9 . 16 . . . 2 6 2 Targets Rammed 38 | . 1 . . 1 1 . . 9 . 16 . . . 2 6 2 Kicked 1 | . 1 . . . . . . . . . . . . . . . Crushed . | . . . . . . . . . . . . . . . . . Highest Temperature 314 | . 6 50 . 18 18 234 . 314 158 194 . 247 228 212 112 3 Average Temperature 73 | . 6 28 . 8 5 63 . 97 54 74 . 90 113 73 54 3 Received Heat Transfer 2522 | . 12 153 . 84 576 480 18 72 45 303 38 196 72 36 289 148 Effects 3 | . . . . . . . . 1 . . . . 2 . . . Interference 3 | . . . . . . . . 1 . . . . 2 . . . Siege Activations . | . . . . . . . . . . . . . . . . . Robots Corrupted . | . . . . . . . . . . . . . . . . . Combat Hostiles . | . . . . . . . . . . . . . . . . . Parts Fried . | . . . . . . . . . . . . . . . . . Impact Corruptions 1 | . . . . . . . . . . 1 . . . . . . Robots Melted . | . . . . . . . . . . . . . . . . . Combat Hostiles . | . . . . . . . . . . . . . . . . . Parts Melted 4 | . . . . . 3 1 . . . . . . . . . . Heat Transferred 3690 | . . . . . 1554 1000 . 1036 . . . . . . 100 . Parts Sabotaged . | . . . . . . . . . . . . . . . . . Parts Stolen . | . . . . . . . . . . . . . . . . . Parts Stripped . | . . . . . . . . . . . . . . . . . Power Chain Reactions . | . . . . . . . . . . . . . . . . . Missiles Intercepted . | . . . . . . . . . . . . . . . . . Alert | -11 -10 -10 -10 -9 -8 -8 -8 -8 -7 -7 -6 -6 -5 -5 -4 -4 ------- Run | Scr Mat Min Exi Min Mat Gar Mat Gar Fac Gar Fac Gar Fac Gar Fac Gar Peak Influence 1666 | . 42 56 . 45 295 1055 554 1216 845 1394 1031 1467 1266 1419 1666 1152 Initial 1058 | . . 16 . . . 191 514 360 638 591 731 721 770 886 744 1058 Average 775 | . 16 43 . 31 97 597 527 951 686 1133 790 1013 1035 1229 1181 1096 Maximum Alert Level 5 | . . . . . 1 3 2 4 3 4 3 4 4 4 5 4 Low Security (%) 19 | 100 100 100 . 100 91 1 . . . . . . . . . . Level 1 3 | . . . . . 8 18 . 3 . . . . . . . . Level 2 14 | . . . . . . 48 100 14 66 21 . . . . . . Level 3 33 | . . . . . . 31 . 47 33 8 100 82 46 24 43 53 Level 4 28 | . . . . . . . . 34 . 70 . 17 53 75 52 46 Level 5 . | . . . . . . . . . . . . . . . 4 . High Security . | . . . . . . . . . . . . . . . . . Max Security . | . . . . . . . . . . . . . . . . . Squads Dispatched 22 | . . . . . 4 . 1 . 1 . 5 . 3 . 8 . Investigation 4 | . . . . . 2 . 1 . . . 1 . . . . . Extermination 1 | . . . . . . . . . 1 . . . . . . . Reinforcement 8 | . . . . . 2 . . . . . 2 . . . 4 . Assault 8 | . . . . . . . . . . . 1 . 3 . 4 . Garrison 1 | . . . . . . . . . . . 1 . . . . . Intercept . | . . . . . . . . . . . . . . . . . Searches Triggered . | . . . . . . . . . . . . . . . . . Construction Impeded 1 | . . . . . . . . . . . . . . . 1 . Haulers Reinforced 2 | . . . . . . . . . . . 1 . . . 1 . Active Scanning Responses . | . . . . . . . . . . . . . . . . . Cargo Convoy Interrupts . | . . . . . . . . . . . . . . . . . Alert ID Control Effect 22 | . . . . . . . . . . . . . . 19 3 . Stealth | -11 -10 -10 -10 -9 -8 -8 -8 -8 -7 -7 -6 -6 -5 -5 -4 -4 --------- Run | Scr Mat Min Exi Min Mat Gar Mat Gar Fac Gar Fac Gar Fac Gar Fac Gar Distress Signals 8 | . . . . . 3 . 1 . . . 3 . . . 1 . Communications Jammed 5 | . . . . . . . . . . . . . . . 5 . Distress Signals 5 | . . . . . . . . . . . . . . . 5 . Times Spotted 265 | . 5 2 . 2 27 30 1 20 8 30 16 11 23 39 46 5 Peak Tracking Total 12 | . 3 2 . 2 5 4 1 6 5 7 7 4 5 12 8 3 Tactical Retreats 12 | . . . . . 4 1 . 1 . 4 . . . . 2 . Traps | -11 -10 -10 -10 -9 -8 -8 -8 -8 -7 -7 -6 -6 -5 -5 -4 -4 ------- Run | Scr Mat Min Exi Min Mat Gar Mat Gar Fac Gar Fac Gar Fac Gar Fac Gar Traps Triggered 15 | . 5 . . . 4 2 . . . . . 1 1 . . 2 Indirectly . | . . . . . . . . . . . . . . . . . Trap Hack Attempts . | . . . . . . . . . . . . . . . . . Triggered . | . . . . . . . . . . . . . . . . . Disarmed . | . . . . . . . . . . . . . . . . . Reprogrammed . | . . . . . . . . . . . . . . . . . Reused . | . . . . . . . . . . . . . . . . . Traps Extracted . | . . . . . . . . . . . . . . . . . Installed . | . . . . . . . . . . . . . . . . . Triggered 1 | . . . . . . . . . . . . 1 . . . . Machines | -11 -10 -10 -10 -9 -8 -8 -8 -8 -7 -7 -6 -6 -5 -5 -4 -4 ---------- Run | Scr Mat Min Exi Min Mat Gar Mat Gar Fac Gar Fac Gar Fac Gar Fac Gar Machines Disabled 55 | . . . . . 1 4 . 1 1 4 . 2 17 3 21 1 Max in Single Turn 6 | . . . . . 1 1 . 1 1 2 . 1 . 1 6 1 Garrison Access 1 | . . . . . . . . . . . . . . . 1 . Garrison Relay 11 | . . . . . . 3 . 1 . 1 . 2 . 3 . 1 Machines Sabotaged . | . . . . . . . . . . . . . . . . . Garrisons Compromised 1 | . . . . . . . . . . . . . . . 1 . Overloaded Fab Kills . | . . . . . . . . . . . . . . . . . Hacking | -11 -10 -10 -10 -9 -8 -8 -8 -8 -7 -7 -6 -6 -5 -5 -4 -4 --------- Run | Scr Mat Min Exi Min Mat Gar Mat Gar Fac Gar Fac Gar Fac Gar Fac Gar Machines Accessed 23 | . . . 2 . 5 2 1 3 1 1 3 2 2 . 1 . Terminals 15 | . . . . . 4 2 . 3 . 1 2 2 1 . . . Fabricators . | . . . . . . . . . . . . . . . . . Repair Stations . | . . . . . . . . . . . . . . . . . Recycling Units . | . . . . . . . . . . . . . . . . . Scanalyzers . | . . . . . . . . . . . . . . . . . Garrison Access 6 | . . . . . 1 . 1 . 1 . 1 . 1 . 1 . Total Hacks 52 | . . . 5 . 15 5 3 6 3 1 6 3 4 . 1 . Successful 29 | . . . 5 . 9 1 3 3 2 . 2 1 2 . 1 . Failed 23 | . . . . . 6 4 . 3 1 1 4 2 2 . . . Catastrophic 3 | . . . . . 1 1 . 1 . . . . . . . . Database Lockouts . | . . . . . . . . . . . . . . . . . Manual 21 | . . . 1 . 13 . 2 1 2 . 2 . . . . . Terminals 34 | . . . . . 11 5 . 6 . 1 5 3 3 . . . Fabricators . | . . . . . . . . . . . . . . . . . Repair Stations . | . . . . . . . . . . . . . . . . . Recycling Units . | . . . . . . . . . . . . . . . . . Scanalyzers . | . . . . . . . . . . . . . . . . . Garrison Access 13 | . . . . . 4 . 3 . 3 . 1 . 1 . 1 . Terminal Hacks 15 | . . . 5 . 3 1 . 3 . . 1 1 1 . . . Record 4 | . . . 4 . . . . . . . . . . . . . Open Door 1 | . . . . . . . . 1 . . . . . . . . Branch Access Points 1 | . . . . . . . . . . . . . 1 . . . Emergency Access Points 3 | . . . . . . 1 . 1 . . . 1 . . . . Terminal Index 1 | . . . . . 1 . . . . . . . . . . . Garrison Index 2 | . . . . . 1 . . . . . 1 . . . . . Registered Components 1 | . . . . . 1 . . . . . . . . . . . Patrol Navigation 1 | . . . . . . . . 1 . . . . . . . . EX-Prototype ID Bank 1 | . . . 1 . . . . . . . . . . . . . Fabricator Hacks . | . . . . . . . . . . . . . . . . . Repair Station Hacks . | . . . . . . . . . . . . . . . . . Recycling Unit Hacks . | . . . . . . . . . . . . . . . . . Scanalyzer . | . . . . . . . . . . . . . . . . . Garrison Access Hacks 6 | . . . . . 1 . 1 . 1 . 1 . 1 . 1 . Unlock Access 6 | . . . . . 1 . 1 . 1 . 1 . 1 . 1 . Unauthorized Hacks 8 | . . . . . 5 . 2 . 1 . . . . . . . Terminals 3 | . . . . . 3 . . . . . . . . . . . Assimilate 1 | . . . . . 1 . . . . . . . . . . . Botnet 2 | . . . . . 2 . . . . . . . . . . . Fabricators . | . . . . . . . . . . . . . . . . . Repair Stations . | . . . . . . . . . . . . . . . . . Recycling Units . | . . . . . . . . . . . . . . . . . Scanalyzers . | . . . . . . . . . . . . . . . . . Garrison Access 5 | . . . . . 2 . 2 . 1 . . . . . . . Restock 3 | . . . . . 1 . 1 . 1 . . . . . . . Reprogram 2 | . . . . . 1 . 1 . . . . . . . . . Data Cores Recovered . | . . . . . . . . . . . . . . . . . Used . | . . . . . . . . . . . . . . . . . Hacking Detections 16 | . . . . . 4 2 . 2 1 1 2 2 2 . . . Full Trace Events 2 | . . . . . . . . . . . 1 1 . . . . Feedback Events . | . . . . . . . . . . . . . . . . . Feedback Blocked . | . . . . . . . . . . . . . . . . . Robot Schematics Acquired . | . . . . . . . . . . . . . . . . . Robots Built . | . . . . . . . . . . . . . . . . . Authchips . | . . . . . . . . . . . . . . . . . Time . | . . . . . . . . . . . . . . . . . Total Robot Build Rating . | . . . . . . . . . . . . . . . . . Part Schematics Acquired . | . . . . . . . . . . . . . . . . . Parts Built . | . . . . . . . . . . . . . . . . . Authchips . | . . . . . . . . . . . . . . . . . Time . | . . . . . . . . . . . . . . . . . Total Part Build Rating . | . . . . . . . . . . . . . . . . . Parts Repaired . | . . . . . . . . . . . . . . . . . Time . | . . . . . . . . . . . . . . . . . Parts Recycled . | . . . . . . . . . . . . . . . . . Recycled Matter . | . . . . . . . . . . . . . . . . . Retrieved Matter . | . . . . . . . . . . . . . . . . . Retrieved Components . | . . . . . . . . . . . . . . . . . Parts Scanalyzed . | . . . . . . . . . . . . . . . . . Part Schematics Acquired . | . . . . . . . . . . . . . . . . . Parts Damaged . | . . . . . . . . . . . . . . . . . Bothacking | -11 -10 -10 -10 -9 -8 -8 -8 -8 -7 -7 -6 -6 -5 -5 -4 -4 ------------ Run | Scr Mat Min Exi Min Mat Gar Mat Gar Fac Gar Fac Gar Fac Gar Fac Gar Used RIF Installer 5 | . . . . . . 1 . 1 . 1 . 1 . 1 . . Command Fork 1 | . . . . . . . . . . 1 . . . . . . Signal Jammer 1 | . . . . . . . . . . . . 1 . . . . Alert ID Control 1 | . . . . . . . . . . . . . . 1 . . Program Shield 1 | . . . . . . . . 1 . . . . . . . . Robots Hacked 48 | . . . . . . 5 1 . 1 3 6 3 4 10 15 . Non-combat 8 | . . . . . . . . . . . 3 . 1 . 4 . Combat 40 | . . . . . . 5 1 . 1 3 3 3 3 10 11 . Robot Hacks Applied 51 | . . . . . . 5 1 . 1 3 6 3 4 11 17 . parse_system 1 | . . . . . . . . . . . . . . 1 . . drop_inventory 1 | . . . . . . . . . . . 1 . . . . . ignore_parts 2 | . . . . . . . . . . . . . . . 2 . map_route 1 | . . . . . . . . . . . 1 . . . . . find_garrison 4 | . . . . . . . . . 1 . . . 1 . 2 . scatter_targeting 1 | . . . . . . . . . . . . . . 1 . . disrupt_area 1 | . . . . . . . . . . . . . . 1 . . reboot_system 4 | . . . . . . 1 . . . 1 . . . 1 1 . overwrite_iff 7 | . . . . . . . . . . . 2 . . 1 4 . formatsys_low 4 | . . . . . . . . . . . 1 . 1 . 2 . formatsys_high 25 | . . . . . . 4 1 . . 2 1 3 2 6 6 . Relay Couplers Released 60 | . . . . . . 18 . 7 . 7 . 8 . 13 2 5 Machine Destruction 49 | . . . . . . 14 . 3 . 4 . 8 . 13 2 5 Programmers 11 | . . . . . . 4 . 4 . 3 . . . . . . Attached 34 | . . . . . . 3 1 . 1 2 2 4 2 8 7 4 Fabnet Peak Effective % . | . . . . . . . . . . . . . . . . . Robots Rewired 3 | . . . . . . . . . . . . . . 3 . . Allies Hacked . | . . . . . . . . . . . . . . . . . Hacks Repelled . | . . . . . . . . . . . . . . . . . Allies | -11 -10 -10 -10 -9 -8 -8 -8 -8 -7 -7 -6 -6 -5 -5 -4 -4 -------- Run | Scr Mat Min Exi Min Mat Gar Mat Gar Fac Gar Fac Gar Fac Gar Fac Gar Total Allies 54 | . . . . . 2 4 2 2 . 4 5 3 5 11 14 2 Largest Group 11 | . . . . . 1 2 1 3 1 3 6 2 6 11 5 1 Highest-Rated Group 455 | . . . . . 10 38 13 102 39 93 163 151 190 455 272 49 Highest-Rated Ally 119 | . . . . . 10 38 13 39 39 32 41 119 119 113 113 49 Total Orders 11 | . . . . . . 1 . . . . . 1 4 5 . . STAY 5 | . . . . . . 1 . . . . . 1 1 2 . . FOLLOW 2 | . . . . . . . . . . . . . 1 1 . . AID 4 | . . . . . . . . . . . . . 2 2 . . Ally Attacks 371 | . . . . . 1 30 1 40 11 8 54 4 56 112 49 5 Total Damage 9401 | . . . . . 15 645 23 701 140 68 1422 141 1600 2802 1576 268 Kills 89 | . . . . . . 3 1 13 2 1 13 3 14 32 5 2 Allies Corrupted 2 | . . . . . . . . . 1 . . . . . 1 . Allies Melted . | . . . . . . . . . . . . . . . . . Field Lobotomies 2 | . . . . . . . . . . . . . . . . 2 Intel | -11 -10 -10 -10 -9 -8 -8 -8 -8 -7 -7 -6 -6 -5 -5 -4 -4 ------- Run | Scr Mat Min Exi Min Mat Gar Mat Gar Fac Gar Fac Gar Fac Gar Fac Gar Robot Analysis Total . | . . . . . . . . . . . . . . . . . Derelict Logs Recovered 1 | . . . . 1 . . . . . . . . . . . . Drone Launches . | . . . . . . . . . . . . . . . . . Drone Recoveries . | . . . . . . . . . . . . . . . . . Exploration | -11 -10 -10 -10 -9 -8 -8 -8 -8 -7 -7 -6 -6 -5 -5 -4 -4 ------------- Run | Scr Mat Min Exi Min Mat Gar Mat Gar Fac Gar Fac Gar Fac Gar Fac Gar Turns Passed 11407 | 3 181 128 387 472 1525 1357 235 1316 375 1140 388 1245 652 1041 640 322 Spaces Moved 5792 | 3 105 72 282 174 744 662 84 644 197 562 228 627 362 515 345 186 Core 224 | . 3 . . . . . . . . . . . . . 120 101 Treads 4028 | . . . . 159 130 238 84 644 197 562 228 627 362 515 197 85 Legs 474 | 3 102 72 282 15 . . . . . . . . . . . . Wheels 1066 | . . . . . 614 424 . . . . . . . . 28 . Hover . | . . . . . . . . . . . . . . . . . Flight . | . . . . . . . . . . . . . . . . . Fastest Speed 50 | 120 100 120 120 240 130 130 163 160 160 160 160 160 160 160 50 50 Average Speed 151 | 120 121 120 134 241 135 141 163 161 160 160 160 160 160 160 124 109 Slowest Speed 260 | 120 200 120 260 260 160 163 163 240 160 240 160 240 160 160 200 180 Overloaded Moves . | . . . . . . . . . . . . . . . . . Propulsion Burnouts . | . . . . . . . . . . . . . . . . . Robots Hopped . | . . . . . . . . . . . . . . . . . Cave-ins Triggered . | . . . . . . . . . . . . . . . . . Exploration Rate (%) 38 | 2 25 20 69 39 50 96 16 70 8 76 9 75 12 54 14 12 Regions Visited 16 Branch Regions 3 Pre-discovered Areas 3 | . . 1 1 1 . . . . . . . . . . . . Known Exits Taken 6 | . . . . . 1 . 1 . 1 . 1 . 1 . 1 . Unknown Exits Taken 5 | 1 1 1 1 1 . . . . . . . . . . . . Scrap Searched 1 | . . . . 1 . . . . . . . . . . . . Spaces Dug 106 | . . . . . 9 19 3 16 10 17 . 11 4 10 7 . Terrain Destroyed 356 | . . . . . 9 32 3 22 13 50 . 27 4 13 183 . Melee 35 | . . . . . 9 . 3 . . 2 . . 4 10 7 . Projectile 29 | . . . . . . 5 . 6 5 10 . . . 3 . . AOE 292 | . . . . . . 27 . 16 8 38 . 27 . . 176 . Terrain Rammed . | . . . . . . . . . . . . . . . . . Walls Destroyed . | . . . . . . . . . . . . . . . . . Machines Disabled . | . . . . . . . . . . . . . . . . . Actions | -11 -10 -10 -10 -9 -8 -8 -8 -8 -7 -7 -6 -6 -5 -5 -4 -4 --------- Run | Scr Mat Min Exi Min Mat Gar Mat Gar Fac Gar Fac Gar Fac Gar Fac Gar Total 7532 | 2 133 97 293 207 1086 943 174 786 231 714 246 760 406 658 501 295 Wait 555 | . 4 11 . 11 174 85 79 . 5 30 . 2 9 52 4 89 Move 5782 | 2 104 71 281 173 744 661 84 643 197 561 228 626 362 514 345 186 Hop . | . . . . . . . . . . . . . . . . . Pick Up 157 | . 2 2 5 7 17 26 1 21 1 13 2 17 5 9 29 . Fast Attach 69 | . 8 1 1 1 10 5 . 2 1 9 . 7 . 1 11 12 Attach 64 | . . . . 1 3 4 1 5 3 9 3 11 2 2 18 2 Detach 14 | . . . . . . 1 . . 2 1 . 3 . . 6 1 Swap 88 | . . 1 1 2 17 23 2 5 1 1 1 8 8 15 3 . Drop 147 | . 1 1 5 . 28 34 2 22 2 15 1 8 1 9 18 . Fire 409 | . 13 10 . 11 80 63 . 53 8 49 9 23 15 27 45 3 Melee 193 | . . . . . 12 31 5 26 11 10 . 54 4 24 16 . Ram . | . . . . . . . . . . . . . . . . . Kick 1 | . 1 . . . . . . . . . . . . . . . Crush 37 | . . . . 1 1 . . 9 . 16 . . . 2 6 2 Escape Stasis 8 | . . . . . . 8 . . . . . . . . . . Rewire 8 | . . . . . . 2 . . . . 2 1 . 3 . . Trap . | . . . . . . . . . . . . . . . . . Miscellaneous . | . . . . . . . . . . . . . . . . . Route ------- -11/Scrapyard -10/Materials -10/Mines -10/Exiles -9/Mines -8/Materials (discovered 2 exits: *Fac / Gar) -8/Garrison (discovered 3 exits: *Mat x3) -8/Materials -8/Garrison (discovered 3 exits: *Fac x3) -7/Factory -7/Garrison (discovered 3 exits: *Fac x3) -6/Factory (discovered 2 exits: *Fac / Gar) -6/Garrison (discovered 3 exits: *Fac x3) -5/Factory (discovered 3 exits: Upp x2 / Gar) -5/Garrison (discovered 2 exits: *Fac x2) -4/Factory -4/Garrison History --------- Turn | Location | Event 1 | -11/Scrapyard | Discovered new exit (range 1) 4 | -11/Scrapyard | Entered Materials 71 | -10/Materials | Discovered new exit (range 15) 185 | -10/Materials | Entered Mines 260 | -10/Mines | Met a Derelict bent on vengeance 299 | -10/Mines | Learned location of Storage (-9) 307 | -10/Mines | Build established: Mutant 308 | -10/Mines | Deemed a non-threat by the Exiles lab entrance 308 | -10/Mines | Discovered new exit (range 5) 313 | -10/Mines | Entered Exiles 350 | -10/Exiles | Met 8R-AWN 369 | -10/Exiles | Met EX-HEX 408 | -10/Exiles | Met EX-BIN 424 | -10/Exiles | Aligned with FarCom system 426 | -10/Exiles | Given EX-Vault access code 454 | -10/Exiles | Opened EX-Vault 464 | -10/Exiles | Found Field Lobotomy Kit 490 | -10/Exiles | Warned to stay clear of 0b10 Research branches 559 | -10/Exiles | Met EX-DEC 589 | -10/Exiles | Learned location of Zion (-6) 669 | -10/Exiles | Discovered new exit (range 14) 700 | -10/Exiles | Left Exiles lab with Field Lobotomy Kit 700 | -10/Exiles | Entered Mines 806 | -9/Mines | Discovered new exit (range 6) 1172 | -9/Mines | Entered Materials 1172 | -8/Materials | Evolved 4 slots: Propulsion x2, Utility x2 1727 | -8/Materials | Discovered new exit (range 2) 2229 | -8/Materials | Build established: Scavenger-Mutant 2694 | -8/Materials | Identified exit to Garrison 2697 | -8/Materials | Entered Garrison 2697 | -8/Garrison | Accompanied by 1 ally 2781 | -8/Garrison | Installed Relay Interface Framework 2824 | -8/Garrison | Triggered checkpoint 2965 | -8/Garrison | Garrison Relay disabled 3034 | -8/Garrison | Triggered checkpoint 3246 | -8/Garrison | Build established: Bothacker-Mutant 3257 | -8/Garrison | Discovered new exit (range 13) 3302 | -8/Garrison | Triggered checkpoint 3352 | -8/Garrison | Garrison Relay disabled 3420 | -8/Garrison | Triggered checkpoint 3666 | -8/Garrison | Discovered new exit (range 10) 3680 | -8/Garrison | Triggered checkpoint 3746 | -8/Garrison | Garrison Relay disabled 3820 | -8/Garrison | Triggered checkpoint 3987 | -8/Garrison | Discovered new exit (range 12) 4054 | -8/Garrison | Entered Materials 4054 | -8/Materials | Accompanied by 1 ally 4284 | -8/Materials | Identified exit to Garrison 4289 | -8/Materials | Entered Garrison 4289 | -8/Garrison | Accompanied by 2 allies 4334 | -8/Garrison | Triggered checkpoint 4338 | -8/Garrison | Core integrity fell below 50% 4430 | -8/Garrison | Rescued a captive Derelict 4432 | -8/Garrison | Rescued a captive Derelict 4504 | -8/Garrison | Triggered checkpoint 4534 | -8/Garrison | Triggered checkpoint 4564 | -8/Garrison | Triggered checkpoint 4666 | -8/Garrison | Triggered checkpoint 5148 | -8/Garrison | Garrison Relay disabled 5204 | -8/Garrison | Discovered new exit (range 13) 5350 | -8/Garrison | Triggered checkpoint 5399 | -8/Garrison | Expanded RIF knowledge: Program Shield 5423 | -8/Garrison | Discovered new exit (range 11) 5570 | -8/Garrison | Discovered new exit (range 9) 5605 | -8/Garrison | Entered Factory 5605 | -7/Factory | Accompanied by 1 ally 5605 | -7/Factory | Evolved 2 slots: Utility x2 5976 | -7/Factory | Identified exit to Garrison 5980 | -7/Factory | Entered Garrison 6039 | -7/Garrison | Triggered checkpoint 6224 | -7/Garrison | Triggered checkpoint 6342 | -7/Garrison | Destroyed 9 combat bots 6400 | -7/Garrison | Triggered checkpoint 6439 | -7/Garrison | Expanded RIF knowledge: Command Fork 6503 | -7/Garrison | Discovered new exit (range 10) 6597 | -7/Garrison | Triggered checkpoint 6660 | -7/Garrison | Discovered new exit (range 9) 6734 | -7/Garrison | Triggered checkpoint 6750 | -7/Garrison | Garrison Relay disabled 7025 | -7/Garrison | Discovered new exit (range 4) 7120 | -7/Garrison | Entered Factory 7120 | -6/Factory | Accompanied by 3 allies 7120 | -6/Factory | Evolved 2 slots: Power x2 7216 | -6/Factory | Discovered new exit (range 15) 7464 | -6/Factory | Garrison activated, responded to threat 7470 | -6/Factory | First assault squad dispatched 7508 | -6/Factory | Identified exit to Garrison 7508 | -6/Factory | Entered Garrison 7508 | -6/Garrison | Accompanied by 1 ally 7545 | -6/Garrison | Spotted B-75 Beast 7608 | -6/Garrison | Warlord forces raided the area 7642 | -6/Garrison | Destroyed B-75 Beast 7665 | -6/Garrison | Lost 6 parts (3p2n1u) 7692 | -6/Garrison | Triggered checkpoint 7724 | -6/Garrison | Found Relay Coupler [Proto] 7726 | -6/Garrison | Found Relay Coupler [Proto] 7729 | -6/Garrison | Found Relay Coupler [Proto] 7732 | -6/Garrison | Found Relay Coupler [Proto] 7742 | -6/Garrison | Triggered checkpoint 7796 | -6/Garrison | Triggered checkpoint 7866 | -6/Garrison | Triggered checkpoint 7868 | -6/Garrison | Lost 3 parts (1u2w) 7943 | -6/Garrison | Garrison Relay disabled 8020 | -6/Garrison | Triggered checkpoint 8084 | -6/Garrison | Discovered new exit (range 13) 8096 | -6/Garrison | Triggered checkpoint 8235 | -6/Garrison | Discovered new exit (range 12) 8282 | -6/Garrison | Spotted Executioner 8289 | -6/Garrison | Assimilated Executioner with formatsys_high 8417 | -6/Garrison | Expanded RIF knowledge: Signal Jamming 8555 | -6/Garrison | Discovered new exit (range 13) 8649 | -6/Garrison | Garrison Relay disabled 8716 | -6/Garrison | Build established: Botlord-Mutant 8753 | -6/Garrison | Entered Factory 8753 | -5/Factory | Accompanied by 2 allies 8753 | -5/Factory | Evolved 2 slots: Propulsion x2 8840 | -5/Factory | Identified exit to Upper Caves 9053 | -5/Factory | First assault squad dispatched 9405 | -5/Factory | Identified exit to Garrison 9405 | -5/Factory | Entered Garrison 9405 | -5/Garrison | Accompanied by 4 allies 9436 | -5/Garrison | Triggered checkpoint 9496 | -5/Garrison | Triggered checkpoint 9515 | -5/Garrison | Garrison Relay disabled 9650 | -5/Garrison | Triggered checkpoint 9683 | -5/Garrison | Expanded RIF knowledge: Alert ID Control 9854 | -5/Garrison | Triggered checkpoint 9864 | -5/Garrison | Triggered checkpoint 10017 | -5/Garrison | Discovered new exit (range 9) 10112 | -5/Garrison | Triggered checkpoint 10157 | -5/Garrison | Garrison Relay disabled 10323 | -5/Garrison | Discovered new exit (range 9) 10389 | -5/Garrison | Garrison Relay disabled 10446 | -5/Garrison | Entered Factory 10446 | -4/Factory | Accompanied by 5 allies 10446 | -4/Factory | Evolved 2 slots: Utility x2 10696 | -4/Factory | First assault squad dispatched 10735 | -4/Factory | Destroyed 8 combat bots 10875 | -4/Factory | Destroyed 9 combat bots 10880 | -4/Factory | Spotted B-86 Titan 10883 | -4/Factory | Assimilated Titan 7a with formatsys_high 10897 | -4/Factory | Core integrity fell below 50% 10925 | -4/Factory | Lost 13 parts (3p3n4u3w) 11048 | -4/Factory | Core integrity fell below 20% 11074 | -4/Factory | Lost 7 parts (3n3u1w) 11086 | -4/Factory | Identified exit to Garrison 11086 | -4/Factory | Entered Garrison 11186 | -4/Garrison | Triggered checkpoint 11248 | -4/Garrison | Assimilated Y-64 Sentinel with FLK Orb 11293 | -4/Garrison | Garrison Relay disabled 11404 | -4/Garrison | Triggered checkpoint 11408 | -4/Garrison | Assimilated H-77 Assassin with FLK Orb 11408 | -4/Garrison | Destroyed by H-77 Assassin with Coil Gun Last Messages --------------- 11293_ Relay Coupler [Grunt] tumbles out of relay unit. 11297_ Acquired Relay Coupler [Specialist]. 11300_ Acquired Relay Coupler [Grunt]. 11302_ System corrupted: Matter fused (-9). 11303_ Acquired Relay Coupler [Hunter]. 11307_ Acquired Relay Coupler [Grunt]. 11310_ Acquired 14 matter. 11313_ Acquired 59 matter. 11364_ Triggered Alarm Trap. 11364_ RIF jams signal. 11394_ System corrupted: Matter fused (-8). 11407_ C-30 ARC bursts open, deploying its payload. 11407_ H-77 Assassin unfolds itself. 11407_ Penetrated by Slug. 11407_ H-77 Assassin suffers critical hit (Burn). 11407_ Slug penetrates H-77 Assassin. 11408_ H-77 Assassin assimilated. 11408_ Slug penetrates Assassin 7a. 11408_ Assassin 7a suffers critical hit (Destroy). 11408_ Assassin 7a destroyed. Map ----- +----------------------------------------------------+ | ???????????????????????# # #??### ##?????????????? | | ???????????????????????# ###???## ##?????????????? | | ???????????????????????# #?????#! !#?????????????? | | ???????????????????????# #?????#! !#?????????????? | | ???????????????????????# #?????#! !#?????????????? | | ?????????????????????### #?????#! !#?????????????? | | ?????????????????????# ######## ##?????????????? | | ?????????????????????# #??????????????? | | ?????????????????????# ##########??????????????? | | ?????????????????????### #???????????????????????? | | ?????#####?????????????# #???????????????????????? | | ?????# #???????####### #???????????????????????? | | ?????# ######### #???????????????????????? | | ?????# ######Y??????????????????????? | | ?????# #????????????????????????????? | | ?????############# #????????????????????????????? | | ?????????????????# #????????????????????????????? | | ?????????????????# #????????????????????????????? | | ?????????????????# #????????????????????????????? | | ?????????????????# #????????????????????????????? | | ?????????????????# #????????????????????????????? | | ?????????????????# #??????????????ssss??????????? | | ?????????????????# #??????????####""""## ???????? | | ?????????????????# ########## ??????? | | ?????????????????# Y [[= ??????? | | ?????????????????# @ !%h[ ??????? | | ?????????????????############# ## #?????????? | | ?????????????????????????????????????????????????? | | ?????????????????????????????????????????????????? | | ????????????????????????????????????BB???????????? | | ????????????????????????????????????BB???s???????? | | ?????????????????????????????????????????s???????? | | ?????????????????????????????????????????????????? | | ?????????????????????????????????????????????????? | | ?????????????????????????????????????????????????? | | ?????????????????????????????????????????????????? | | ?????????????????????????????????????????????????? | | ?????????????????????????????????????????????????? | | ??????????????????????????????g?g????????????????? | | ?????????????????????????????????????????????????? | | ?????????????????????????????????????????????????? | | ????????????????????????????????g????????????????? | | ??????????????????????????????g??????????????????? | | ?????????????????????????????????????????????????? | | ?????????????????????????????????????????????????? | | ?????????????????????????????????????????????????? | | ?????????????????????????????????????????????????? | | ?????????????????????????????????????????????????? | | ?????????????????????????????????????????????????? | | ?????????????????????????????????????????????????? | +----------------------------------------------------+ Best States ------------- Heat Dissipation 100 Coolant Potential 80 Energy Generation 45 Energy Capacity 575 Matter Stores 300 Matter Capacity 300 Sight Range 16 Terrain Scan Density 10 Armor Coverage 600 Power Shielding 66 Utility Shielding 66 Evasion (%) 55 Targeting Accuracy 5 Recoil Reduction 6 Relay Coupler Types 7 Relay Coupler Value 123 Authchip Count 2 Item Schematics ----------------- None Robot Schematics ------------------ None Fabricated ------------ Nothing Alien Tech Used ----------------- None Achievements -------------- None Challenges ------------ None Game ------ Seed ChargeGodSpear Manual? 0 Play Time 01:53:17 Cumulative 306.8 hours Start 2022.08.23 @ 15:14:41 End 2022.08.24 @ 03:17:50 Sessions 5 Manual Loads 0 Difficulty Rogue Special Mode None Game No. 347 Rogue 347 Adventurer 0 Explorer 0 Win Type - Total 11 Types 8/0/2/1/0/0/0/0/0 Lore% 74 Gallery% 88 Achievement% 76 Wizard Run 0 Options --------- ASCII 0 Keyboard 0 Movement Numpad Keybinds 0 Fullscreen 1 Font 18/Terminus Map View 76x50 Tactical HUD 1 Map Filters NONE Filters NONE Steam 1 RUN: 69ac72b9-5bba-44d5-b077-6b56502a43f1